bitfinex/quotes_ETHUSD_20241003
["timestamp","ask_amount","ask_price","bid_price","bid_amount"]
[1727946856801,8.53691,2342.8,2342.4,4.26912]
[1727946856984,4.2684,2342.8,2342.5,0.426912]
[1727946857186,4.26859,2342.7,2342.3,7.26929]
[1727946857387,4.2684,2342.8,2342.3,7.26929]
[1727946857618,4.10370733,2342.7,2342.5,4.26886]
[1727946857814,6.575643,2343.4,2342.4,1.2265655]
[1727946857815,4.26839,2342.8,2342.4,4.26895]
[1727946857987,4.10370733,2342.7,2342.0,3.55]
[1727946858188,12.64029733,2342.9,2342.4,4.26896]
[1727946858529,8.37199733,2342.9,2342.4,4.26896]
[1727946858884,8.37199733,2342.9,2342.5,4.26892]
[1727946859311,4.10370733,2342.9,2342.6,4.26863]
[1727946859515,8.37168733,2343.1,2342.7,4.695413]
[1727946859718,4.10370733,2343.1,2342.7,4.695413]
[1727946859926,4.10370733,2343.3,2342.9,4.26813]
[1727946860137,4.10370733,2343.1,2342.8,4.26836]
[1727946860833,4.10370733,2343.1,2342.9,4.2682]
[1727946861009,4.10370733,2343.1,2342.9,5.5913843]
[1727946861334,4.10370733,2343.3,2343.0,4.26802]
[1727946861644,4.10370733,2343.3,2342.7,0.426863]
[1727946861794,4.26859,2342.7,2342.1,0.781989]
[1727946861996,4.10370733,2342.9,2342.0,4.26977]
[1727946861997,8.37275733,2342.5,2342.0,4.26977]
[1727946862304,4.26823,2342.9,2342.5,4.26894]
[1727946862305,8.37195733,2342.9,2342.5,4.26894]
[1727946862619,8.37195733,2342.9,2342.5,5.122755]
[1727946862825,4.26844,2342.8,2342.1,4.2695]
[1727946863036,8.53701,2342.8,2342.3,8.53858]
[1727946863231,4.10370733,2342.7,2342.4,4.26909]
[1727946863459,4.2692,2342.4,2342.0,4.26971]
[1727946863641,3.83721473,2342.6,2341.9,4.27]
[1727946863947,3.83721473,2342.6,2342.1,4.2696]
[1727946863948,4.2689,2342.6,2342.1,4.2696]
[1727946864147,5.05221328,2342.7,2342.2,8.53871]
[1727946864148,9.32081328,2342.7,2342.2,8.53871]
[1727946864305,4.2686,2342.7,2342.2,8.53871]
[1727946864512,4.26847,2342.8,2342.3,4.30154359]
[1727946864851,4.26839,2342.9,2342.4,4.2691]
[1727946865160,4.26843,2342.8,2342.3,4.26919]
[1727946865450,4.26843,2342.8,2342.4,4.695959]
[1727946865651,4.26843,2342.8,2342.4,0.426919]
[1727946865861,5.05221328,2343.0,2342.2,4.26936]
[1727946866011,4.26811,2343.0,2342.5,4.26878]
[1727946866422,4.26777,2343.2,2342.7,4.26849]
[1727946866627,6.575643,2343.4,2342.9,4.26809]
[1727946866628,8.53484,2343.4,2342.9,4.26809]
[1727946866850,8.53486,2343.4,2342.9,4.30041531]
[1727946867016,4.26765,2343.3,2342.9,0.03232531]
[1727946867222,4.2678,2343.2,2342.8,4.26839]
[1727946867433,4.26765,2343.3,2342.9,4.695039]
[1727946868024,4.26782,2343.2,2342.9,0.426839]
[1727946868218,4.26816,2343.0,2342.6,4.26874]
[1727946868456,4.26785,2343.1,2342.7,0.426874]
[1727946868838,0.1157543,2343.7,2343.2,4.26758]
[1727946869021,0.1157543,2343.7,2342.9,3.0]
[1727946869022,4.26719,2343.5,2343.0,4.26801]
[1727946869225,4.3825843,2343.7,2343.1,4.26783]
[1727946869226,4.26701,2343.6,2343.1,4.26783]
[1727946869837,4.26701,2343.6,2342.4,3.0]
[1727946869838,4.26775,2343.2,2342.7,4.26844]
[1727946870233,4.26752,2343.3,2342.8,4.26827]
[1727946870433,4.26744,2343.4,2342.8,4.26827]
[1727946870434,4.26744,2343.4,2342.9,4.2682]
[1727946870831,4.26742,2343.4,2342.8,4.26827]
[1727946871064,4.26742,2343.4,2342.8,0.85369]
[1727946871272,4.26757,2343.3,2342.8,4.26828]
[1727946872034,4.26757,2343.3,2342.9,4.26819]
[1727946872269,4.26742,2343.4,2343.0,4.268]
[1727946872472,9.31949328,2343.5,2343.0,4.268]
[1727946872631,9.31949328,2343.5,2343.0,8.53595]
[1727946872832,9.31949328,2343.5,2343.1,4.26783]
[1727946873035,9.31943328,2343.5,2343.1,4.26783]
[1727946873238,9.31935328,2343.5,2343.1,4.26783]
[1727946873481,4.26734,2343.4,2343.0,4.26801]
[1727946873842,9.31935328,2343.5,2342.6,4.26866]
[1727946874039,5.05221328,2343.5,2343.1,4.26777]
[1727946874386,5.05221328,2343.5,2342.7,4.768108]
[1727946874387,4.26703,2343.6,2343.2,4.26766]
[1727946874692,4.26703,2343.6,2343.1,4.26781]
[1727946874839,4.26723,2343.5,2343.1,4.26781]
[1727946875181,4.26758,2343.3,2342.9,4.2681]
[1727946876079,5.05221328,2343.2,2342.4,4.26911]
[1727946876285,5.05221328,2343.2,2342.4,4.26904]
[1727946876286,4.2685,2342.8,2342.4,4.26904]
[1727946876766,8.53627,2343.0,2342.5,4.26877]
[1727946877076,4.26831,2342.9,2342.5,4.26877]
[1727946877261,4.26813,2343.0,2342.5,4.26877]
[1727946877448,4.26813,2343.0,2342.5,5.122562]
[1727946877776,4.26821,2342.9,2342.5,4.26877]
[1727946878583,4.26823,2342.9,2342.5,4.26877]
[1727946878744,4.26824,2342.9,2342.5,4.26877]
[1727946879075,5.05221328,2342.8,2341.8,1.34412285]
[1727946879280,4.26916,2342.4,2341.9,4.26995]
[1727946879786,4.26931,2342.3,2341.8,4.27008]
[1727946879993,4.26984,2342.1,2341.6,4.27047]
[1727946880137,4.2705,2341.7,2341.2,5.61535285]
[1727946880337,4.27023,2341.8,2341.4,4.27093]
[1727946880569,5.05221328,2341.9,2341.3,4.27111]
[1727946880570,4.27046,2341.7,2341.3,4.27111]
[1727946881162,3.0,2341.8,2341.0,5.01236667]
[1727946881432,4.27087,2341.5,2341.0,4.27156]
[1727946881988,4.27087,2341.5,2341.1,4.27148]
[1727946882278,4.27087,2341.5,2341.1,5.125784]
[1727946882888,5.05221328,2341.6,2340.8,4.27191]
[1727946883103,4.27151,2341.1,2340.6,4.27238]
[1727946883243,4.27132,2341.2,2340.7,4.699348]
[1727946883646,6.575643,2341.7,2340.7,4.699348]
[1727946883647,4.27087,2341.5,2340.9,4.27184]
[1727946883898,4.27033,2341.8,2340.9,4.27185]
[1727946884103,5.05221328,2342.0,2340.8,0.4699348]
[1727946884104,4.26995,2342.0,2341.4,4.27082]
[1727946884297,4.26995,2342.0,2340.8,4.27186]
[1727946884298,4.27022,2341.8,2341.2,4.27119]
[1727946884450,4.27022,2341.8,2341.3,4.698249]
[1727946885220,4.27051,2341.7,2341.3,0.427119]
[1727946885984,4.2706,2341.6,2341.3,0.427119]
[1727946886396,4.2706,2341.6,2341.1,4.27148]
[1727946886898,4.27051,2341.7,2341.0,4.27157]
[1727946886899,8.54106,2341.7,2341.2,4.27129]
[1727946887103,8.54106,2341.7,2340.8,3.0]
[1727946887104,5.05221328,2341.7,2340.8,7.27193]
[1727946887273,4.27135,2341.2,2340.8,4.27193]
[1727946887475,5.05221328,2341.4,2340.6,4.27237]
[1727946887476,4.27154,2341.1,2340.6,4.2723]
[1727946887798,4.27154,2341.1,2340.6,5.126795]
[1727946888299,4.27154,2341.1,2340.7,4.27221]
[1727946888699,4.27131,2341.2,2340.8,4.27204]
[1727946889140,5.05221328,2341.4,2340.6,4.2723]
[1727946889340,4.27133,2341.2,2340.7,4.6993]
[1727946889497,4.27133,2341.2,2340.8,4.27203]
[1727946890945,4.27092,2341.5,2341.0,4.27157]
[1727946891146,4.27092,2341.5,2341.0,5.125903]
[1727946891305,4.27092,2341.5,2341.0,4.27157]
[1727946891652,4.2716,2341.1,2340.7,0.42723]
[1727946891796,4.27198,2340.9,2340.4,4.27275]
[1727946891998,4.27205,2340.8,2340.4,4.57275]
[1727946892252,4.27205,2340.8,2340.4,0.3]
[1727946892253,4.27225,2340.7,2340.4,0.3]
[1727946892403,5.05221328,2340.8,2339.9,4.27355]
[1727946892764,9.32370328,2341.2,2339.8,4.27384]
[1727946892765,4.27303,2340.3,2339.8,4.27384]
[1727946894125,4.27243,2340.6,2340.1,4.27331]
[1727946894366,4.27259,2340.5,2340.0,4.27349]
[1727946894862,12.32415328,2340.9,2339.4,3.0]
[1727946894863,5.05221328,2340.6,2339.4,3.0]
[1727946895163,4.27365,2340.0,2339.5,4.57439]
[1727946895320,4.27365,2340.0,2339.5,4.27439]
[1727946895517,4.27339,2340.1,2339.6,4.27421]
[1727946895718,4.27339,2340.1,2339.5,4.27439]
[1727946895951,4.27339,2340.1,2339.6,4.27422]
[1727946896336,4.27339,2340.1,2339.5,4.701769]
[1727946896673,8.54618,2340.3,2339.8,4.27375]
[1727946896962,4.27214,2340.8,2340.3,4.27286]
[1727946897465,6.575643,2341.5,2340.7,4.27221]
[1727946897466,4.27124,2341.3,2340.7,4.27221]
[1727946897664,4.27134,2341.2,2340.7,4.27221]
[1727946898155,4.27177,2341.0,2340.4,4.999946]
[1727946898368,4.27169,2341.0,2340.5,0.55]
[1727946898524,4.2716,2341.1,2340.5,5.304776]
[1727946898720,4.2716,2341.1,2340.6,4.27233]
[1727946899017,4.27147,2341.2,2340.8,4.27203]
[1727946899018,4.27133,2341.2,2340.8,4.27203]
[1727946899226,4.27165,2341.1,2340.6,4.27233]
[1727946899444,4.27168,2341.0,2340.6,4.27233]
[1727946899726,4.27168,2341.0,2340.6,5.1750546]
[1727946899921,4.27139,2341.2,2340.6,9.4473646]
[1727946900120,4.27157,2341.1,2340.6,5.1750246]
[1727946900335,4.27157,2341.1,2340.3,4.27287]
[1727946900336,4.27157,2341.1,2340.5,0.55]
[1727946900538,4.27169,2341.0,2340.3,4.27284]
[1727946900838,4.27169,2341.0,2339.9,0.427375]
[1727946900839,8.5435,2341.0,2340.5,4.27249]
[1727946901052,8.5435,2341.0,2340.5,5.127012]
[1727946901344,4.2715,2341.1,2340.6,4.27223]
[1727946901655,5.05221328,2341.8,2340.4,4.82276]
[1727946901832,4.27078,2341.5,2341.1,4.27138]
[1727946902263,4.27078,2341.5,2340.7,4.27213]
[1727946902264,4.27146,2341.2,2340.6,3.0]
[1727946902594,6.575643,2342.0,2340.0,4.27348]
[1727946902595,4.27279,2340.4,2340.0,4.27348]
[1727946902770,4.2732,2340.2,2339.3,4.27468]
[1727946903087,4.27249,2340.6,2340.1,4.27323]
[1727946903380,1.34287697,2341.9,2340.1,4.27323]
[1727946903381,7.27161,2341.1,2340.6,4.27225]
[1727946903674,4.27079,2341.5,2341.1,4.27145]
[1727946903832,4.27079,2341.5,2341.1,0.427145]
[1727946904043,4.27048,2341.7,2341.1,4.698495]
[1727946904244,4.27042,2341.7,2341.1,4.27136]
[1727946904600,4.27118,2341.3,2340.5,4.27244]
[1727946904747,4.2706,2341.6,2340.5,4.27244]
[1727946904748,4.27151,2341.1,2340.6,3.0]
[1727946904947,4.27177,2341.0,2340.5,4.27257]
[1727946905147,4.27177,2341.0,2340.5,4.74683053]
[1727946905680,4.27177,2341.0,2340.5,0.47426053]
[1727946905887,5.05221328,2341.1,2340.1,4.27318]
[1727946906187,4.27243,2340.6,2340.1,8.54639]
[1727946906555,4.27198,2340.9,2340.3,4.27292]
[1727946906885,4.2725,2340.6,2340.1,4.27321]
[1727946907188,4.2719,2340.9,2340.3,4.27287]
[1727946907342,5.05221328,2341.1,2339.3,4.91600421]
[1727946907343,4.27246,2340.6,2340.1,4.27331]
[1727946907543,4.27222,2340.7,2340.1,4.27331]
[1727946907544,4.27259,2340.5,2340.1,4.27331]
[1727946907985,4.27222,2340.7,2340.2,4.27312]
[1727946908197,4.27222,2340.7,2340.3,4.27294]
[1727946908352,4.27252,2340.6,2340.2,4.27302]
[1727946908544,4.27266,2340.5,2339.9,3.55]
[1727946908749,4.27317,2340.2,2339.6,4.27407]
[1727946909024,4.27368,2339.9,2339.5,4.27431]
[1727946909163,4.27278,2340.4,2339.2,4.27484]
[1727946909164,4.27425,2339.6,2339.2,4.27484]
[1727946909492,5.05221328,2340.2,2339.2,0.854994]
[1727946909493,4.27359,2340.0,2339.2,0.854994]
[1727946909694,4.27359,2340.0,2339.6,4.2742]
[1727946909988,4.27359,2340.0,2339.0,0.56411221]
[1727946909989,4.27328,2340.2,2339.8,4.27386]
[1727946910147,4.27345,2340.1,2339.6,4.27414]
[1727946910349,4.27345,2340.1,2339.6,5.128983]
[1727946910549,4.27317,2340.2,2339.7,4.2739]
[1727946910796,4.27332,2340.1,2339.6,4.27422]
[1727946911090,4.27311,2340.3,2339.6,4.27422]
[1727946911404,4.27332,2340.1,2339.7,4.27396]
[1727946911839,14.62785628,2340.8,2339.7,0.854818]
[1727946912136,14.62785628,2340.8,2339.8,4.82374]
[1727946912137,4.27323,2340.2,2339.8,4.82374]
[1727946912935,4.27198,2340.9,2339.8,4.82374]
[1727946912936,7.27167,2341.1,2340.2,4.27306]
[1727946913223,5.05221328,2341.2,2340.0,4.27349]
[1727946913422,4.27133,2341.2,2340.5,4.27255]
[1727946913591,4.27139,2341.2,2340.7,4.2721]
[1727946914001,4.27193,2340.9,2340.5,0.55]
[1727946914230,4.27162,2341.1,2340.3,0.55]
[1727946914534,4.27162,2341.1,2340.6,8.54456]
[1727946914700,8.5432,2341.1,2340.6,5.126726]
[1727946914891,4.27102,2341.4,2340.9,4.27185]
[1727946915087,15.89807628,2341.8,2340.6,3.854456]
[1727946915088,4.2707,2341.6,2341.0,4.27151]
[1727946915405,4.27114,2341.3,2340.9,4.82184]
[1727946915590,4.27114,2341.3,2340.8,4.27193]
[1727946915591,4.27145,2341.2,2340.8,3.0]
[1727946915791,4.27114,2341.3,2340.9,4.27185]
[1727946916134,4.27135,2341.2,2340.8,0.427219]
[1727946916423,4.27105,2341.4,2340.8,4.27201]
[1727946916626,4.27105,2341.4,2340.2,3.0]
[1727946916631,4.27105,2341.4,2341.0,4.27165]
[1727946917004,9.32243328,2341.8,2340.7,4.2721]
[1727946917005,4.27157,2341.1,2340.7,4.2721]
[1727946917400,4.27132,2341.2,2340.7,4.27205]
[1727946917607,4.27098,2341.4,2340.9,0.55]
[1727946917832,4.2714,2341.2,2340.7,4.27219]
[1727946918042,4.27176,2341.0,2340.5,4.27247]
[1727946918207,4.27203,2340.9,2340.4,7.27276]
[1727946918408,4.27259,2340.5,2339.9,4.27368]
[1727946918742,4.27259,2340.5,2340.0,4.2734]
[1727946918922,4.27259,2340.5,2340.0,4.27341]
[1727946919140,4.27248,2340.6,2340.1,4.2733]
[1727946919291,4.27248,2340.6,2340.0,4.27341]
[1727946919292,4.27261,2340.5,2340.0,8.974161]
[1727946919495,4.27261,2340.5,2340.0,4.700751]
[1727946919750,4.27261,2340.5,2340.1,4.27329]
[1727946919923,8.5453,2340.5,2340.1,4.27329]
[1727946920126,0.50522133,2340.8,2339.9,4.27361]
[1727946920127,4.77732133,2340.8,2339.9,4.27361]
[1727946920336,4.27322,2340.2,2339.7,0.3]
[1727946920544,4.2738,2339.9,2339.1,0.48395922]
[1727946920708,4.27387,2339.8,2339.4,4.27452]
[1727946920909,4.27387,2339.8,2339.4,5.129455]
[1727946921195,4.2735,2340.0,2339.5,4.27439]
[1727946921492,10.848653,2340.3,2339.7,4.27394]
[1727946921711,10.848653,2340.3,2339.3,4.27476]
[1727946921712,4.27301,2340.3,2339.9,4.27359]
[1727946921920,3.0,2340.5,2339.9,0.427359]
[1727946922118,3.0,2340.6,2340.2,4.27305]
[1727946922320,4.27203,2340.9,2340.2,4.27304]
[1727946922538,4.27245,2340.6,2340.0,0.55]
[1727946922700,4.27269,2340.5,2340.0,4.27347]
[1727946923347,4.27251,2340.6,2339.7,4.27388]
[1727946923548,4.27251,2340.6,2339.8,4.27382]
[1727946923747,4.27318,2340.2,2339.8,4.27382]
[1727946923954,4.2735,2340.0,2339.6,4.2741]
[1727946924135,4.2735,2340.0,2339.5,4.27428]
[1727946924331,4.2735,2340.0,2338.8,11.12005708]
[1727946924332,4.27407,2339.7,2339.3,4.27469]
[1727946924654,4.27451,2339.5,2339.0,4.27523]
[1727946924854,5.05221328,2340.0,2338.9,4.27548]
[1727946925029,5.05221328,2340.0,2338.7,4.27576]
[1727946925030,8.55008,2339.2,2338.7,4.27576]
[1727946925233,4.27533,2339.0,2338.5,4.27608]
[1727946925557,4.27532,2339.1,2338.5,4.27608]
[1727946925758,4.27552,2338.9,2338.5,4.27608]
[1727946925913,4.27552,2338.9,2338.3,4.27645]
[1727946926118,4.27528,2339.1,2338.6,4.27605]
[1727946926352,3.0,2339.5,2338.3,0.427645]
[1727946926353,3.0,2339.2,2338.4,4.27642]
[1727946926568,3.0,2339.5,2338.3,4.704215]
[1727946926569,7.27452,2339.5,2338.3,4.704215]
[1727946926792,4.27432,2339.6,2339.1,4.27502]
[1727946927064,4.27416,2339.7,2339.3,4.27477]
[1727946927065,4.27406,2339.7,2339.3,4.27477]
[1727946927248,4.27387,2339.8,2339.4,4.27451]
[1727946927767,4.27387,2339.8,2339.3,4.27477]
[1727946927932,8.54784,2339.8,2339.3,4.27477]
[1727946928140,8.5479,2339.8,2339.3,4.27477]
[1727946928334,4.27387,2339.8,2339.3,4.27477]
[1727946928540,5.05221328,2340.3,2339.4,0.427477]
[1727946928762,4.27368,2340.0,2339.4,4.702057]
[1727946928921,4.27372,2339.9,2339.4,4.702057]
[1727946929446,4.27368,2340.0,2339.4,4.702057]
[1727946929655,4.27334,2340.1,2339.6,8.54823]
[1727946930118,4.27334,2340.1,2339.6,4.27409]
[1727946930559,4.27357,2340.0,2339.6,4.27409]
[1727946930763,4.27357,2340.0,2339.6,5.128946]
[1727946930971,11.62785628,2340.6,2339.7,0.55]
[1727946931135,4.27279,2340.4,2339.9,8.54713]
[1727946931466,4.27279,2340.4,2339.7,0.58950301]
[1727946931467,4.27211,2340.8,2340.1,4.2732]
[1727946931767,11.62785628,2340.9,2340.2,0.42732]
[1727946931939,4.27297,2340.3,2339.9,4.27353]
[1727946932136,4.2727,2340.5,2339.7,0.55]
[1727946932335,4.2725,2340.6,2340.1,4.27321]
[1727946932522,4.2725,2340.6,2339.2,0.56411221]
[1727946932523,4.27344,2340.1,2339.5,0.55]
[1727946932723,4.27379,2339.9,2339.4,4.27458]
[1727946932924,4.27379,2339.9,2339.0,5.61942285]
[1727946932925,4.27432,2339.6,2339.1,4.27512]
[1727946933166,4.27417,2339.7,2338.8,4.27558]
[1727946933383,4.27359,2340.0,2339.5,4.2743]
[1727946933530,4.27373,2339.9,2339.4,4.27458]
[1727946933724,4.27373,2339.9,2339.5,0.854923]
[1727946933930,4.27359,2340.0,2339.5,0.854923]
[1727946934209,4.27359,2340.0,2339.4,4.27458]
[1727946934353,4.27359,2340.0,2339.5,4.27441]
[1727946935136,8.54721,2340.0,2339.5,4.27441]
[1727946935551,4.27396,2339.8,2339.3,4.27466]
[1727946935752,4.27396,2339.8,2339.4,4.27459]
[1727946936083,9.32531328,2340.3,2339.4,5.129515]
[1727946936231,8.05221328,2340.3,2339.4,4.27442]
[1727946936426,4.27358,2340.0,2339.4,4.27442]
[1727946936655,4.27358,2340.0,2339.6,4.27422]
[1727946936860,4.27358,2340.0,2339.5,4.27432]
[1727946937228,4.27368,2339.9,2339.5,4.27432]
[1727946937736,4.27327,2340.2,2339.6,4.27413]
[1727946937928,10.848503,2340.4,2339.7,4.27403]
[1727946938133,10.848503,2340.4,2339.8,4.27386]
[1727946938134,4.27321,2340.2,2339.8,4.27386]
[1727946938573,4.27296,2340.3,2339.1,3.0]
[1727946938574,5.05221328,2340.3,2339.1,3.0]
[1727946938731,8.54836,2339.7,2339.2,4.27494]
[1727946938932,4.27424,2339.6,2339.2,4.27494]
[1727946939185,4.274,2339.8,2339.3,4.27478]
[1727946939341,4.27382,2339.9,2339.2,0.854996]
[1727946939342,4.27435,2339.6,2339.2,0.854996]
[1727946939532,4.27473,2339.4,2338.9,4.702918]
[1727946939733,5.05221328,2339.4,2338.6,4.27597]
[1727946939933,4.27525,2339.1,2338.6,4.27597]
[1727946940180,4.27536,2339.0,2338.6,4.27597]
[1727946940879,4.27518,2339.1,2338.6,4.27597]
[1727946941173,4.27551,2338.9,2338.5,4.27624]
[1727946941388,4.27551,2338.9,2338.4,4.80311272]
[1727946941389,4.27571,2338.8,2338.4,4.27628]
[1727946941532,4.27571,2338.8,2338.3,4.27659]
[1727946941533,0.7965,2338.7,2338.3,4.27659]
[1727946941735,0.7965,2338.7,2338.4,4.27635]
[1727946941973,0.7965,2338.7,2338.3,4.27659]
[1727946941974,0.7965,2338.7,2338.3,4.27658]
[1727946942181,5.0724,2338.7,2338.3,0.427658]
[1727946942477,5.0724,2338.7,2337.9,0.8301]
[1727946942478,4.27623,2338.6,2337.9,0.8301]
[1727946942779,4.27623,2338.6,2338.2,4.27676]
[1727946942985,0.7965,2338.7,2337.9,0.8301]
[1727946943281,4.27656,2338.4,2338.0,4.2771]
[1727946943433,1.5337143,2338.7,2337.6,0.7926]
[1727946943434,6.9645769,2338.7,2337.6,0.7926]
[1727946943637,0.798,2338.5,2337.6,4.27778]
[1727946943887,5.4308626,2338.4,2337.3,0.7665]
[1727946944082,7.93756032,2338.6,2337.2,4.27854]
[1727946944083,4.27794,2337.6,2337.2,4.27854]
[1727946944229,9.7078526,2338.1,2337.3,4.27834]
[1727946944230,4.27745,2337.9,2337.3,4.27834]
[1727946944432,4.27745,2337.9,2337.4,4.27813]
[1727946944828,4.27781,2337.7,2337.2,4.27859]
[1727946945033,4.27807,2337.5,2337.1,4.27878]
[1727946945282,0.8166,2337.6,2337.1,4.27878]
[1727946945505,0.8166,2337.6,2336.9,4.27906]
[1727946945506,4.27808,2337.5,2336.9,4.27906]
[1727946945812,0.8166,2337.6,2336.9,4.27906]
[1727946945813,8.55674,2337.4,2336.9,4.27906]
[1727946946097,8.55674,2337.4,2336.1,4.28052]
[1727946946098,0.7699,2336.9,2336.1,4.28052]
[1727946946314,4.28022,2336.4,2335.7,4.28132]
[1727946946457,4.28037,2336.3,2335.8,4.28118]
[1727946946798,4.28037,2336.3,2335.8,5.19962426]
[1727946947002,5.05066,2336.1,2335.6,0.62194255]
[1727946947202,4.28093,2336.0,2335.4,4.28191]
[1727946947406,0.7699,2336.1,2335.4,0.428191]
[1727946947711,0.7699,2336.1,2335.7,8.56263]
[1727946948002,4.27991,2336.5,2336.0,4.2808]
[1727946948201,4.2802,2336.4,2336.1,0.42808]
[1727946948501,4.27982,2336.6,2336.0,4.28081]
[1727946948806,4.27991,2336.5,2335.8,4.28111]
[1727946949010,4.27991,2336.5,2335.9,4.28098]
[1727946949252,5.04955,2336.7,2336.2,4.28036]
[1727946949419,5.04955,2336.7,2335.5,0.782]
[1727946949420,4.28009,2336.4,2335.9,4.28096]
[1727946949700,0.7699,2336.7,2336.1,4.28062]
[1727946949701,8.5597,2336.6,2336.1,4.28062]
[1727946949899,0.7699,2336.7,2336.1,5.136778]
[1727946950075,0.7699,2336.7,2335.9,4.28086]
[1727946950255,4.28029,2336.3,2335.7,4.28119]
[1727946950456,4.28023,2336.4,2335.8,4.28116]
[1727946950662,4.28103,2335.9,2335.4,4.28191]
[1727946950861,4.28111,2335.9,2335.4,4.2818]
[1727946951118,4.2812,2335.8,2335.4,0.856388]
[1727946951270,4.2812,2335.8,2335.1,5.06433]
[1727946951604,4.28156,2335.6,2335.1,5.06433]
[1727946951809,4.2812,2335.8,2335.1,5.06433]
[1727946951964,4.2814,2335.7,2335.2,4.28216]
[1727946952365,4.2812,2335.8,2335.3,4.28208]
[1727946952689,8.56187,2336.0,2335.3,4.28209]
[1727946953881,4.28084,2336.0,2335.0,4.28251]
[1727946954075,3.7699,2336.1,2335.0,4.28251]
[1727946954076,4.28187,2335.5,2335.0,4.28251]
[1727946954312,9.39242,2335.5,2334.8,4.28287]
[1727946954513,5.11055,2335.5,2335.0,4.28264]
[1727946954825,0.8287,2335.5,2335.0,0.57560946]
[1727946955032,0.78,2335.8,2335.4,4.28191]
[1727946955215,0.78,2335.8,2335.5,4.2816]
[1727946955530,4.28106,2335.9,2335.4,4.28191]
[1727946955828,0.78,2336.1,2335.2,0.7505]
[1727946955829,5.06077,2336.1,2335.2,0.7505]
[1727946956128,5.06077,2336.1,2335.3,0.55]
[1727946956339,0.8013,2336.4,2336.0,4.28064]
[1727946956490,4.27962,2336.7,2336.3,4.28027]
[1727946956682,5.08899,2336.8,2336.3,4.28011]
[1727946956888,0.8096,2336.8,2336.3,0.856045]
[1727946957099,0.8096,2336.8,2336.4,4.28]
[1727946957839,0.8096,2336.8,2336.4,4.27998]
[1727946958012,4.27918,2336.9,2336.4,5.136008]
[1727946958325,4.27917,2336.9,2336.5,4.27989]
[1727946958728,4.27917,2336.9,2336.4,4.28007]
[1727946958729,8.55844,2336.9,2336.4,4.28007]
[1727946958942,4.27899,2337.0,2336.5,5.135819]
[1727946959227,4.27899,2337.0,2336.5,4.27979]
[1727946959393,4.2792,2336.9,2336.5,4.27979]
[1727946959736,4.27873,2337.2,2336.8,4.27935]
[1727946959921,0.8215,2337.5,2336.7,0.55]
[1727946960104,0.8215,2337.5,2337.0,4.27888]
[1727946960491,0.8215,2337.5,2336.9,0.55]
[1727946960721,4.27881,2337.1,2336.7,4.82945]
[1727946960927,4.27844,2337.3,2336.7,0.95553352]
[1727946961174,4.27876,2337.2,2336.7,0.95553352]
[1727946961472,4.27818,2337.5,2337.0,4.27884]
[1727946961761,3.8281,2337.8,2336.8,0.55]
[1727946961762,4.27797,2337.6,2337.1,4.27872]
[1727946961918,4.27797,2337.6,2336.8,1.15320335]
[1727946961919,4.27836,2337.4,2336.9,4.27903]
[1727946962125,4.27844,2337.3,2336.7,4.27943]
[1727946962449,4.27927,2336.9,2336.4,4.83007]
[1727946962836,8.5586,2336.9,2336.4,4.83007]
[1727946963019,5.07669,2337.0,2336.5,4.2799]
[1727946963218,0.7977,2337.0,2336.5,4.2799]
[1727946963456,0.7977,2337.0,2336.1,4.28052]
[1727946963668,4.27987,2336.6,2336.1,4.28049]
[1727946963835,4.27969,2336.7,2336.2,4.28044]
[1727946964405,4.28046,2336.2,2335.7,0.7787]
[1727946964563,4.28116,2335.9,2335.2,0.7787]
[1727946964729,4.28065,2336.1,2335.2,5.06082]
[1727946965063,4.28165,2335.6,2335.1,4.28244]
[1727946965266,4.28165,2335.6,2335.0,4.710762]
[1727946965473,4.28165,2335.6,2334.9,0.7787]
[1727946965474,5.09846,2335.8,2335.3,4.28209]
[1727946965770,4.28137,2335.7,2335.3,4.28209]
[1727946965974,4.28155,2335.6,2335.0,4.28264]
[1727946966125,4.28182,2335.5,2335.0,5.217046]
[1727946966331,8.09852,2335.8,2335.3,4.28208]
[1727946966666,4.28137,2335.7,2335.3,4.28208]
[1727946966827,4.28137,2335.7,2335.2,4.28227]
[1727946967024,0.8172,2335.8,2335.3,4.2821]
[1727946967227,5.09841,2335.8,2334.9,0.7787]
[1727946967426,4.28261,2335.1,2334.6,5.03997]
[1727946967666,4.28267,2335.0,2334.5,8.5669]
[1727946967881,4.28286,2334.9,2334.5,4.28343]
[1727946968250,5.08462,2335.2,2334.7,4.28307]
[1727946968560,4.28204,2335.4,2334.7,4.28313]
[1727946968766,0.7746,2335.6,2334.7,4.28313]
[1727946968767,4.28238,2335.2,2334.8,0.428313]
[1727946968933,4.28189,2335.5,2334.5,0.94396143]
[1727946969140,4.28211,2335.3,2334.9,4.28274]
[1727946969344,4.28127,2335.8,2335.3,4.282]
[1727946969651,10.856203,2336.2,2335.6,4.28142]
[1727946969652,4.28077,2336.1,2335.6,4.28142]
[1727946969857,4.28039,2336.3,2335.8,4.2811]
[1727946970047,4.28039,2336.3,2335.9,4.28091]
[1727946970682,4.27975,2336.6,2336.1,4.28054]
[1727946970992,4.27963,2336.7,2336.0,0.428091]
[1727946971135,4.27963,2336.7,2336.1,4.28063]
[1727946971336,0.832,2337.0,2336.3,4.28014]
[1727946971541,4.27935,2336.8,2336.2,1.3605]
[1727946971736,4.27935,2336.8,2336.3,4.28024]
[1727946972177,4.27934,2336.9,2336.2,1.3605]